fUST/lending_fUST_20250717
["ID","MTS","AMOUNT","RATE_DAILY","PERIOD"]
[372576307,1752689446750,-460.0,0.00021917,2]
[372576308,1752689446759,-460.0,0.00021917,2]
[372576309,1752689446768,-850.37,0.00021917,2]
[372576310,1752689446778,-466.44,0.00021917,2]
[372576311,1752689446788,-460.0,0.00021917,2]
[372576312,1752689446798,-3089.51,0.00021917,2]
[372576313,1752689446808,-460.0,0.00021917,2]
[372576314,1752689446817,-894.41,0.00021917,2]
[372576315,1752689446827,-1994.35,0.00021917,2]
[372576316,1752689446837,-460.0,0.00021917,2]
[372576317,1752689446846,-1626.4,0.00021917,2]
[372576318,1752689446855,-1747.87,0.00021917,2]
[372576319,1752689446864,-506.24,0.00021917,2]
[372576320,1752689446874,-460.0,0.00021917,2]
[372576321,1752689446883,-1316.69,0.00021917,2]
[372576322,1752689446893,-460.0,0.00021917,2]
[372576323,1752689446903,-975.99,0.00021917,2]
[372576324,1752689446912,-1264.65,0.00021917,2]
[372576325,1752689446921,-937.64,0.00021917,2]
[372576326,1752689446932,-200.0,0.00021918,2]
[372576327,1752689446941,-150.07429765,0.00021918,2]
[372576328,1752689446951,-1326.0,0.00021918,2]
[372576329,1752689446960,-500.0,0.00021918,2]
[372576330,1752689446970,-151.0,0.00021918,2]
[372576331,1752689446980,-151.0,0.00021918,2]
[372576332,1752689446990,-3000.0,0.0002192,2]
[372576333,1752689446999,-158.02861431,0.0002192,4]
[372576334,1752689447014,-158.02861431,0.0002192,4]
[372576335,1752689447024,-158.02,0.0002192,4]
[372576336,1752689447034,-158.02861431,0.0002192,4]
[372576337,1752689447043,-158.02861431,0.0002192,4]
[372576338,1752689447053,-158.02861431,0.0002192,4]
[372576339,1752689447063,-158.02861431,0.0002192,4]
[372576340,1752689447072,-158.02861431,0.0002192,4]
[372576341,1752689447082,-150.04226239,0.0002192,4]
[372576342,1752689447091,-150.04226239,0.0002192,4]
[372576343,1752689447101,-150.04226239,0.0002192,4]
[372576344,1752689447110,-150.04226239,0.0002192,4]
[372576345,1752689447119,-150.04,0.0002192,4]
[372576346,1752689447129,-159.13573284,0.0002192,4]
[372576347,1752689447138,-159.13573284,0.0002192,4]
[372576348,1752689447147,-159.13573284,0.0002192,4]
[372576349,1752689447157,-159.13573284,0.0002192,4]
[372576350,1752689447166,-159.13573284,0.0002192,4]
[372576351,1752689447175,-159.13573284,0.0002192,4]
[372576352,1752689447185,-159.13573284,0.0002192,4]
[372576353,1752689447194,-159.13573284,0.0002192,4]
[372576354,1752689447205,-3000.0,0.0002193,2]
[372576355,1752689447214,-3020.13106274,0.00021931,2]
[372576356,1752689447224,-3936.29039602,0.00021934,6]
[372576357,1752689447234,-3000.0,0.0002194,2]
[372576358,1752689447243,-3000.0,0.0002195,2]
[372576359,1752689447253,-3000.0,0.0002196,2]
[372576360,1752689447262,-3000.0,0.0002197,2]
[372576361,1752689447271,-500.0,0.00021973,2]
[372576362,1752689447281,-500.0,0.00021973,2]
[372576363,1752689447292,-500.0,0.00021973,2]
[372576364,1752689447301,-500.0,0.00021973,2]
[372576365,1752689447311,-291.6857558,0.00021973,2]
[372576366,1752689447452,-500.0,0.00021973,2]
[372576367,1752689447462,-500.0,0.00021973,2]
[372576368,1752689447472,-500.0,0.00021973,2]
[372576369,1752689447483,-504.32043466,0.00021973,2]
[372576370,1752689447493,-500.0,0.00021973,2]
[372576371,1752689447502,-500.0,0.00021973,2]
[372576372,1752689447512,-500.0,0.00021973,2]
[372576373,1752689447522,-500.0,0.00021973,2]
[372576374,1752689447531,-500.0,0.00021973,2]
[372576375,1752689447541,-317.46934266,0.00021973,2]
[372576376,1752689447551,-500.0,0.00021973,2]
[372576377,1752689447561,-553.09417526,0.00021973,2]
[372576378,1752689447571,-546.37947481,0.00021973,2]
[372576379,1752689447581,-500.0,0.00021973,2]
[372576380,1752689447591,-500.0,0.00021973,2]
[372576381,1752689447601,-500.0,0.00021973,2]
[372576382,1752689447611,-500.0,0.00021973,2]
[372576383,1752689447620,-500.0,0.00021973,2]
[372576384,1752689447629,-500.0,0.00021973,2]
[372576385,1752689447639,-500.0,0.00021973,2]
[372576386,1752689447648,-500.0,0.00021973,2]
[372576387,1752689447658,-192.77584648,0.00021973,2]
[372576388,1752689447667,-510.02007641,0.00021973,2]
[372576389,1752689447677,-203.96689228,0.00021973,2]
[372576390,1752689447686,-500.0,0.00021973,2]
[372576391,1752689447696,-500.0,0.00021973,2]
[372576392,1752689447705,-500.0,0.00021973,2]
[372576393,1752689447715,-500.0,0.00021973,2]
[372576394,1752689447726,-617.91842792,0.00021973,2]
[372576395,1752689447735,-500.0,0.00021973,2]
[372576396,1752689447745,-500.0,0.00021973,2]
[372576397,1752689447754,-223.48338086,0.00021973,2]
[372576398,1752689447764,-500.0,0.00021973,2]
[372576399,1752689447773,-3000.0,0.0002198,2]
[372576400,1752689447784,-159.13573284,0.00021983,4]
[372576401,1752689447798,-178.72,0.0002199,3]
[372576402,1752689447808,-3000.0,0.0002199,2]
[372576403,1752689447818,-3000.0,0.00022,2]
[372576404,1752689447827,-7309.65,0.00022,7]
[372576405,1752689447838,-158.0,0.00022,2]
[372576406,1752689447849,-4020.09,0.00022,7]
[372576407,1752689447859,-168.0,0.00022,2]
[372576408,1752689447869,-6008.88865403,0.00022,7]
[372576409,1752689447988,-30650.15765722,0.00022,7]
[372576410,1752689448000,-8994.66368875,0.00022,7]
[372576411,1752689448009,-5152.02400827,0.00022,2]
[372576418,1752689666389,318.721737,0.00013699,2]
[372576426,1752690431142,-159.47801445,0.00018864,2]
[372576427,1752690431163,-432.9373315,0.00018868,2]
[372576428,1752690431187,-1516.19112266,0.000189,2]
[372576457,1752690632495,-310.37797824,0.00018864,2]
[372576458,1752690632506,-119.44382377,0.00018899,2]
[372576463,1752690632549,-180.55617623,0.00018899,2]
[372576465,1752690632560,-300.0,0.00018899,2]
[372576467,1752690632570,-184.35540513,0.00018899,2]
[372576476,1752690638478,-200.15050736,0.00018799,2]
[372576477,1752690638488,-115.64459487,0.00018899,2]
[372576478,1752690638499,-1200.0,0.00018899,2]
[372576479,1752690638509,-5736.56947081,0.000189,2]
[372576480,1752690638519,-688.74882403,0.000189,2]
[372576481,1752690638529,-294.93,0.00018957,3]
[372576482,1752690638539,-884.82,0.00018957,3]
[372576483,1752690638549,-1200.0,0.00018964,2]
[372576484,1752690638559,-638.41900424,0.00018966,2]
[372576485,1752690638568,-1505.12227158,0.00018966,2]
[372576486,1752690638578,-1505.12227158,0.00018966,2]
[372576487,1752690638588,-500.0,0.00018966,2]
[372576488,1752690638598,-1505.12227158,0.00018966,2]
[372576489,1752690638607,-500.0,0.00018966,2]
[372576490,1752690638617,-500.0,0.00018966,2]
[372576491,1752690638627,-1505.12227158,0.00018966,2]
[372576492,1752690638637,-500.0,0.00018966,2]
[372576493,1752690638647,-500.0,0.00018966,2]
[372576494,1752690638657,-1505.12227158,0.00018966,2]
[372576495,1752690638667,-500.0,0.00018966,2]
[372576496,1752690638677,-1505.12227158,0.00018966,2]
[372576497,1752690638688,-280.33454437,0.00018966,2]
[372576498,1752690638712,-219.66545563,0.00018966,2]
[372576499,1752690638723,-500.0,0.00018966,2]
[372576500,1752690638733,-1505.12227158,0.00018966,2]
[372576501,1752690638743,-500.0,0.00018966,2]
[372576502,1752690638753,-1505.12227158,0.00018966,2]
[372576503,1752690638762,-500.0,0.00018966,2]
[372576504,1752690638773,-1505.12227158,0.00018966,2]
[372576505,1752690638782,-500.0,0.00018966,2]
[372576506,1752690638792,-590.9456016,0.00018966,2]
[372576507,1752690638802,-1505.12227158,0.00018966,2]
[372576508,1752690638811,-1505.12227158,0.00018966,2]
[372576509,1752690638821,-500.0,0.00018966,2]
[372576510,1752690638830,-1505.12227158,0.00018966,2]
[372576511,1752690638840,-1505.12227158,0.00018966,2]
[372576512,1752690638849,-500.0,0.00018966,2]
[372576513,1752690638859,-200.0,0.00018966,2]
[372576514,1752690638869,-1505.12227158,0.00018966,2]
[372576515,1752690638879,-1505.12227158,0.00018966,2]
[372576516,1752690638888,-1505.12227158,0.00018966,2]
[372576517,1752690638897,-1505.12227158,0.00018966,2]
[372576518,1752690638907,-1505.12227158,0.00018966,2]
[372576519,1752690638916,-1505.12227158,0.00018966,2]
[372576520,1752690638927,-1505.12227158,0.00018966,2]
[372576521,1752690638936,-1505.12227158,0.00018966,2]
[372576522,1752690638946,-1505.12227158,0.00018966,2]
[372576523,1752690638955,-1505.12227158,0.00018966,2]
[372576524,1752690638966,-1505.12227158,0.00018966,2]
[372576525,1752690638976,-18.94087383,0.00018966,2]
[372576526,1752690638988,-1486.18139775,0.00018966,2]
[372576527,1752690638998,-1505.12227158,0.00018966,2]
[372576528,1752690639007,-1505.12227158,0.00018966,2]
[372576529,1752690639018,-487.80850607,0.00018966,2]
[372576530,1752690639030,-1017.31376551,0.00018966,2]
[372576531,1752690639214,-1505.12227158,0.00018966,2]
[372576532,1752690639224,-1505.12227158,0.00018966,2]
[372576533,1752690639234,-1505.12227158,0.00018966,2]
[372576534,1752690639244,-1505.12227158,0.00018966,2]
[372576536,1752690639253,-1505.12227158,0.00018966,2]
[372576537,1752690639263,-1505.12227158,0.00018966,2]
[372576539,1752690639272,-1505.12227158,0.00018966,2]
[372576540,1752690639282,-1505.12227158,0.00018966,2]
[372576541,1752690639291,-1505.12227158,0.00018966,2]
[372576542,1752690639301,-1505.12227158,0.00018966,2]
[372576544,1752690639311,-1505.12227158,0.00018966,2]
[372576545,1752690639320,-1505.12227158,0.00018966,2]
[372576546,1752690639330,-1505.12227158,0.00018966,2]
[372576547,1752690639340,-1505.12227158,0.00018966,2]
[372576548,1752690639349,-1505.12227158,0.00018966,2]
[372576549,1752690639359,-1505.12227158,0.00018966,2]
[372576550,1752690639369,-1505.12227158,0.00018966,2]
[372576551,1752690639380,-1505.12227158,0.00018966,2]
[372576552,1752690639390,-288.8365288,0.00018966,2]
[372576553,1752690639406,-1216.28574278,0.00018966,2]
[372576554,1752690639415,-1505.12227158,0.00018966,2]
[372576555,1752690639425,-1505.12227158,0.00018966,2]
[372576556,1752690639435,-1505.12227158,0.00018966,2]
[372576557,1752690639445,-1505.12227158,0.00018966,2]
[372576558,1752690639454,-1505.12227158,0.00018966,2]
[372576559,1752690639465,-1505.12227158,0.00018966,2]
[372576560,1752690639476,-500.0,0.00018966,2]
[372576561,1752690639486,-1505.12227158,0.00018966,2]
[372576563,1752690639496,-1505.12227158,0.00018966,2]
[372576564,1752690639506,-1505.12227158,0.00018966,2]
[372576566,1752690639515,-1505.12227158,0.00018966,2]
[372576567,1752690639525,-1505.12227158,0.00018966,2]
[372576568,1752690639535,-1505.12227158,0.00018966,2]
[372576569,1752690639544,-1505.12227158,0.00018966,2]
[372576570,1752690639554,-1505.12227158,0.00018966,2]
[372576571,1752690639564,-1505.12227158,0.00018966,2]
[372576572,1752690639574,-1505.12227158,0.00018966,2]
[372576573,1752690639583,-1505.12227158,0.00018966,2]
[372576574,1752690639593,-1505.12227158,0.00018966,2]
[372576575,1752690639603,-1505.12227158,0.00018966,2]
[372576576,1752690639613,-1505.12227158,0.00018966,2]
[372576577,1752690639623,-500.0,0.00018973,2]
[372576578,1752690639633,-2109.53924694,0.00018974,2]
[372576579,1752690639642,-24900.0,0.00018975,2]
[372576580,1752690639652,-298.45051039,0.00019078,2]
[372576581,1752690639661,-5736.56947062,0.00019141,2]
[372576582,1752690639672,-500.0,0.00019173,2]
[372576583,1752690639684,-296.52145129,0.00019173,2]
[372576584,1752690639694,-500.0,0.00019173,2]
[372576585,1752690639704,-568.26880508,0.00019178,2]
[372576586,1752690639715,-460.0,0.00019178,2]
[372576587,1752690639727,-460.0,0.00019178,2]
[372576588,1752690639736,-460.0,0.00019178,2]
[372576589,1752690639746,-460.0,0.00019178,2]
[372576590,1752690639757,-460.0,0.00019178,2]
[372576591,1752690639766,-460.0,0.00019178,2]
[372576592,1752690639777,-460.0,0.00019178,2]
[372576593,1752690639786,-460.0,0.00019178,2]
[372576594,1752690639796,-463.46190112,0.00019178,2]
[372576595,1752690639805,-460.0,0.00019178,2]
[372576596,1752690639814,-460.0,0.00019178,2]
[372576597,1752690639824,-460.0,0.00019178,2]
[372576598,1752690639833,-460.0,0.00019178,2]
[372576599,1752690639843,-460.0,0.00019178,2]
[372576600,1752690639853,-460.0,0.00019178,2]
[372576601,1752690639862,-590.9613605,0.00019178,2]
[372576602,1752690639871,-460.0,0.00019178,2]
[372576603,1752690639881,-460.0,0.00019178,2]
[372576604,1752690639890,-460.0,0.00019178,2]
[372576605,1752690639902,-460.0,0.00019178,2]
[372576606,1752690639912,-462.53552571,0.00019178,2]
[372576607,1752690639921,-460.0,0.00019178,2]
[372576608,1752690639930,-460.0,0.00019178,2]
[372576609,1752690639939,-460.0,0.00019178,2]
[372576610,1752690639948,-460.0,0.00019178,2]
[372576611,1752690639958,-460.0,0.00019178,2]
[372576612,1752690639972,-460.0,0.00019178,2]
[372576613,1752690639982,-460.0,0.00019178,2]
[372576614,1752690639991,-460.0,0.00019178,2]
[372576615,1752690640001,-460.0,0.00019178,2]
[372576616,1752690640010,-460.0,0.00019178,2]
[372576617,1752690640020,-460.0,0.00019178,2]
[372576618,1752690640029,-460.0,0.00019178,2]
[372576619,1752690640039,-460.0,0.00019178,2]
[372576620,1752690640050,-460.0,0.00019178,2]
[372576621,1752690640060,-581.58,0.00019178,2]
[372576622,1752690640070,-460.0,0.00019178,2]
[372576623,1752690640079,-460.0,0.00019178,2]
[372576624,1752690640089,-460.0,0.00019178,2]
[372576626,1752690640098,-460.0,0.00019178,2]
[372576627,1752690640108,-460.0,0.00019178,2]
[372576628,1752690640117,-460.0,0.00019178,2]
[372576629,1752690640127,-460.0,0.00019178,2]
[372576630,1752690640139,-460.0,0.00019178,2]
[372576632,1752690640149,-460.0,0.00019178,2]
[372576634,1752690640158,-460.0,0.00019178,2]
[372576636,1752690640168,-460.0,0.00019178,2]
[372576638,1752690640177,-468.89057623,0.00019178,2]
[372576640,1752690640188,-460.0,0.00019178,2]
[372576642,1752690640198,-460.0,0.00019178,2]
[372576644,1752690640207,-460.0,0.00019178,2]
[372576646,1752690640219,-460.0,0.00019178,2]
[372576647,1752690640229,-460.0,0.00019178,2]
[372576649,1752690640239,-517.29962209,0.00019178,2]
[372576651,1752690640248,-460.0,0.00019178,2]
[372576653,1752690640259,-460.0,0.00019178,2]
[372576655,1752690640268,-460.0,0.00019178,2]
[372576656,1752690640277,-600.16,0.00019178,2]
[372576658,1752690640287,-460.0,0.00019178,2]
[372576660,1752690640296,-460.0,0.00019178,2]
[372576662,1752690640306,-451.50982227,0.00019178,2]
[372576663,1752690640316,-460.0,0.00019178,2]
[372576664,1752690640326,-460.0,0.00019178,2]
[372576666,1752690640336,-460.0,0.00019178,2]
[372576667,1752690640346,-460.0,0.00019178,2]
[372576668,1752690640355,-460.0,0.00019178,2]
[372576669,1752690640364,-630.18,0.00019178,2]
[372576670,1752690640374,-460.0,0.00019178,2]
[372576672,1752690640383,-460.0,0.00019178,2]
[372576674,1752690640392,-460.0,0.00019178,2]
[372576676,1752690640401,-460.0,0.00019178,2]
[372576677,1752690640410,-460.0,0.00019178,2]
[372576679,1752690640419,-460.0,0.00019178,2]
[372576681,1752690640429,-460.0,0.00019178,2]
[372576683,1752690640438,-460.0,0.00019178,2]
[372576685,1752690640447,-460.0,0.00019178,2]
[372576687,1752690640457,-460.0,0.00019178,2]
[372576689,1752690640469,-460.0,0.00019178,2]
[372576691,1752690640479,-460.0,0.00019178,2]
[372576693,1752690640489,-460.0,0.00019178,2]
[372576695,1752690640499,-463.47977592,0.00019178,2]
[372576697,1752690640508,-697.63,0.00019178,2]
[372576698,1752690640518,-460.0,0.00019178,2]
[372576699,1752690640527,-460.0,0.00019178,2]
[372576700,1752690640537,-460.0,0.00019178,2]
[372576701,1752690640547,-460.0,0.00019178,2]
[372576702,1752690640557,-460.0,0.00019178,2]
[372576703,1752690640567,-460.0,0.00019178,2]
[372576704,1752690640576,-460.0,0.00019178,2]
[372576705,1752690640586,-460.0,0.00019178,2]
[372576707,1752690640596,-460.0,0.00019178,2]
[372576708,1752690640605,-460.0,0.00019178,2]
[372576709,1752690640615,-460.0,0.00019178,2]
[372576710,1752690640625,-460.0,0.00019178,2]
[372576711,1752690640635,-460.0,0.00019178,2]
[372576712,1752690640644,-460.0,0.00019178,2]
[372576713,1752690640654,-460.0,0.00019178,2]
[372576714,1752690640663,-460.0,0.00019178,2]
[372576715,1752690640673,-460.0,0.00019178,2]
[372576716,1752690640688,-460.0,0.00019178,2]
[372576717,1752690640698,-460.0,0.00019178,2]
[372576718,1752690640707,-753.91,0.00019178,2]
[372576719,1752690640718,-460.0,0.00019178,2]
[372576720,1752690640729,-460.0,0.00019178,2]
[372576721,1752690640739,-948.59,0.00019178,2]
[372576722,1752690640749,-460.0,0.00019178,2]
[372576723,1752690640758,-460.0,0.00019178,2]
[372576724,1752690640768,-460.0,0.00019178,2]
[372576725,1752690640780,-460.0,0.00019178,2]
[372576726,1752690640790,-460.0,0.00019178,2]
[372576727,1752690640803,-461.57923151,0.00019178,2]
[372576728,1752690640812,-460.0,0.00019178,2]
[372576729,1752690640824,-460.0,0.00019178,2]
[372576730,1752690640835,-460.0,0.00019178,2]
[372576731,1752690640845,-460.0,0.00019178,2]
[372576732,1752690640855,-460.0,0.00019178,2]
[372576733,1752690640864,-460.0,0.00019178,2]
[372576734,1752690640873,-803.35,0.00019178,2]
[372576735,1752690640882,-460.0,0.00019178,2]
[372576736,1752690640892,-460.0,0.00019178,2]
[372576737,1752690640901,-460.0,0.00019178,2]
[372576738,1752690640910,-460.0,0.00019178,2]
[372576739,1752690640920,-460.0,0.00019178,2]
[372576740,1752690640929,-460.0,0.00019178,2]
[372576741,1752690640939,-460.0,0.00019178,2]
[372576742,1752690640948,-460.0,0.00019178,2]
[372576743,1752690640958,-460.0,0.00019178,2]
[372576744,1752690640968,-460.0,0.00019178,2]
[372576745,1752690640978,-460.0,0.00019178,2]
[372576746,1752690640987,-460.0,0.00019178,2]
[372576747,1752690640998,-460.0,0.00019178,2]
[372576748,1752690641007,-460.0,0.00019178,2]
[372576749,1752690641017,-460.0,0.00019178,2]
[372576750,1752690641028,-460.0,0.00019178,2]
[372576751,1752690641037,-460.0,0.00019178,2]
[372576752,1752690641046,-460.0,0.00019178,2]
[372576753,1752690641056,-460.0,0.00019178,2]
[372576754,1752690641066,-768.26,0.00019178,2]
[372576755,1752690641077,-460.0,0.00019178,2]
[372576756,1752690641087,-460.0,0.00019178,2]
[372576757,1752690641097,-503.00993077,0.00019178,2]
[372576758,1752690641106,-460.0,0.00019178,2]
[372576759,1752690641115,-1527.39,0.00019178,2]
[372576760,1752690641125,-1299.29,0.00019178,2]
[372576761,1752690641134,-460.0,0.00019178,2]
[372576762,1752690641144,-460.0,0.00019178,2]
[372576763,1752690641154,-3730.58,0.00019178,2]
[372576764,1752690641163,-460.0,0.00019178,2]
[372576765,1752690641175,-1854.38,0.00019178,2]
[372576766,1752690641185,-460.0,0.00019178,2]
[372576767,1752690641197,-5722.12,0.00019178,2]
[372576768,1752690641207,-460.0,0.00019178,2]
[372576769,1752690641218,-420.50965263,0.00019178,2]
[372576770,1752690641228,-460.0,0.00019178,2]
[372576771,1752690641238,-460.0,0.00019178,2]
[372576772,1752690641247,-460.0,0.00019178,2]
[372576773,1752690641257,-460.0,0.00019178,2]
[372576774,1752690641267,-830.33,0.00019178,2]
[372576775,1752690641277,-460.0,0.00019178,2]
[372576776,1752690641287,-460.0,0.00019178,2]
[372576777,1752690641297,-460.0,0.00019178,2]
[372576778,1752690641306,-460.0,0.00019178,2]
[372576779,1752690641316,-460.0,0.00019178,2]
[372576780,1752690641326,-460.0,0.00019178,2]
[372576781,1752690641337,-460.0,0.00019178,2]
[372576782,1752690641348,-460.0,0.00019178,2]
[372576783,1752690641358,-460.0,0.00019178,2]
[372576784,1752690641368,-460.0,0.00019178,2]
[372576785,1752690641379,-460.0,0.00019178,2]
[372576786,1752690641388,-460.0,0.00019178,2]
[372576787,1752690641398,-587.43,0.00019178,2]
[372576788,1752690641408,-460.0,0.00019178,2]
[372576789,1752690641418,-460.0,0.00019178,2]
[372576790,1752690641428,-720.93,0.00019178,2]
[372576791,1752690641438,-460.0,0.00019178,2]
[372576792,1752690641449,-654.85,0.00019178,2]
[372576793,1752690641459,-460.0,0.00019178,2]
[372576794,1752690641470,-460.0,0.00019178,2]
[372576795,1752690641479,-460.0,0.00019178,2]
[372576796,1752690641491,-621.95,0.00019178,2]
[372576797,1752690641501,-464.03122356,0.00019178,2]
[372576798,1752690641511,-4910.64,0.00019178,2]
[372576799,1752690641520,-460.0,0.00019178,2]
[372576800,1752690641530,-460.0,0.00019178,2]
[372576801,1752690641540,-460.0,0.00019178,2]
[372576802,1752690641550,-460.0,0.00019178,2]
[372576803,1752690641560,-460.0,0.00019178,2]
[372576804,1752690641570,-588.07,0.00019178,2]
[372576805,1752690641582,-460.0,0.00019178,2]
[372576806,1752690641591,-2634.73,0.00019178,2]
[372576807,1752690641601,-460.0,0.00019178,2]
[372576808,1752690641612,-460.0,0.00019178,2]
[372576809,1752690641623,-460.0,0.00019178,2]
[372576810,1752690641632,-460.0,0.00019178,2]
[372576811,1752690641642,-796.59,0.00019178,2]
[372576812,1752690641653,-460.0,0.00019178,2]
[372576813,1752690641663,-2262.11,0.00019178,2]
[372576814,1752690641675,-460.0,0.00019178,2]
[372576815,1752690641685,-460.0,0.00019178,2]
[372576816,1752690641695,-460.0,0.00019178,2]
[372576817,1752690641707,-460.0,0.00019178,2]
[372576818,1752690641718,-460.0,0.00019178,2]
[372576819,1752690641729,-573.57,0.00019178,2]
[372576820,1752690641739,-460.0,0.00019178,2]
[372576821,1752690641749,-460.0,0.00019178,2]
[372576822,1752690641760,-460.0,0.00019178,2]
[372576823,1752690641772,-699.76,0.00019178,2]
[372576824,1752690641783,-460.0,0.00019178,2]
[372576825,1752690641793,-1384.47,0.00019178,2]
[372576826,1752690641804,-2061.49,0.00019178,2]
[372576827,1752690641813,-460.0,0.00019178,2]
[372576828,1752690641823,-460.0,0.00019178,2]
[372576829,1752690641833,-461.2954037,0.00019178,2]
[372576830,1752690641843,-460.0,0.00019178,2]
[372576831,1752690641852,-460.0,0.00019178,2]
[372576832,1752690641862,-460.0,0.00019178,2]
[372576833,1752690641872,-559.79,0.00019178,2]
[372576834,1752690641883,-372.63348116,0.00019178,2]
[372576835,1752690641892,-1819.44,0.00019178,2]
[372576836,1752690641902,-460.0,0.00019178,2]
[372576837,1752690641911,-460.0,0.00019178,2]
[372576838,1752690641921,-460.0,0.00019178,2]
[372576839,1752690641931,-460.0,0.00019178,2]
[372576840,1752690641942,-460.0,0.00019178,2]
[372576841,1752690641953,-460.0,0.00019178,2]
[372576842,1752690641966,-460.0,0.00019178,2]
[372576843,1752690641976,-460.0,0.00019178,2]
[372576844,1752690641985,-460.0,0.00019178,2]
[372576845,1752690641995,-632.04454251,0.00019178,2]
[372576846,1752690642005,-500.0,0.00019178,2]
[372576847,1752690642015,-777.35,0.00019178,2]
[372576848,1752690642025,-460.0,0.00019178,2]
[372576849,1752690642035,-465.07077503,0.00019178,2]
[372576850,1752690642044,-166.821697,0.00019178,2]
[372576851,1752690642054,-1269.97958452,0.00019261,2]
[372576852,1752690642063,-776.87375658,0.00019351,2]
[372576853,1752690642073,-5736.56947062,0.00019383,2]
[372576854,1752690642082,-877.46,0.00019451,2]
[372576855,1752690642091,-785.2,0.00019451,2]
[372576856,1752690642101,-460.0,0.00019451,2]
[372576857,1752690642110,-460.0,0.00019451,2]
[372576858,1752690642120,-460.0,0.00019451,2]
[372576859,1752690642130,-460.0,0.00019452,2]
[372576860,1752690642139,-460.0,0.00019452,2]
[372576861,1752690642148,-460.0,0.00019452,2]
[372576862,1752690642158,-460.0,0.00019452,2]
[372576863,1752690642167,-460.0,0.00019452,2]
[372576864,1752690642179,-264.51244642,0.00019452,2]
[372576865,1752690642189,-460.0,0.00019452,2]
[372576866,1752690642199,-460.0,0.00019452,2]
[372576867,1752690642208,-460.0,0.00019452,2]
[372576868,1752690642220,-460.0,0.00019452,2]
[372576869,1752690642229,-460.0,0.00019452,2]
[372576870,1752690642239,-460.0,0.00019452,2]
[372576871,1752690642249,-460.0,0.00019452,2]
[372576872,1752690642259,-460.0,0.00019452,2]
[372576873,1752690642268,-460.0,0.00019452,2]
[372576874,1752690642278,-460.0,0.00019452,2]
[372576875,1752690642287,-460.0,0.00019452,2]
[372576876,1752690642297,-460.0,0.00019452,2]
[372576877,1752690642306,-460.0,0.00019452,2]
[372576878,1752690642316,-581.58,0.00019452,2]
[372576879,1752690642325,-460.0,0.00019452,2]
[372576880,1752690642335,-460.0,0.00019452,2]
[372576881,1752690642350,-460.0,0.00019452,2]
[372576882,1752690642373,-460.0,0.00019452,2]
[372576883,1752690642391,-460.0,0.00019452,2]
[372576884,1752690642401,-460.0,0.00019452,2]
[372576885,1752690642411,-460.0,0.00019452,2]
[372576886,1752690642420,-460.0,0.00019452,2]
[372576887,1752690642430,-460.0,0.00019452,2]
[372576888,1752690642440,-460.0,0.00019452,2]
[372576889,1752690642450,-460.0,0.00019452,2]
[372576890,1752690642460,-460.0,0.00019452,2]
[372576891,1752690642474,-460.0,0.00019452,2]
[372576892,1752690642484,-600.16,0.00019452,2]
[372576893,1752690642494,-460.0,0.00019452,2]
[372576894,1752690642504,-460.0,0.00019452,2]
[372576895,1752690642514,-460.0,0.00019452,2]
[372576896,1752690642524,-460.0,0.00019452,2]
[372576897,1752690642533,-630.18,0.00019452,2]